bitfinex-derivatives/quotes_SOLF0:USTF0_20260302
["timestamp","ask_amount","ask_price","bid_price","bid_amount"]
[1772410414750,10.7097,84.034,83.991,10.79178313]
[1772410415648,10.7084,84.044,83.991,10.79178313]
[1772410420154,9.92869831,84.04,83.991,10.79178313]
[1772410421856,10.7091,84.038,83.991,10.79178313]
[1772410422156,9.92869831,84.04,83.991,10.79178313]
[1772410423058,9.92869831,84.039,83.991,10.79178313]
[1772410423551,9.92869831,84.036,83.991,10.79178313]
[1772410424354,10.7097,84.033,83.991,10.79178313]
[1772410424652,9.92869831,84.036,83.992,10.83198029]
[1772410425954,9.92869831,84.036,83.996,10.83198029]
[1772410426455,9.92869831,84.036,84.0,13.5509798]
[1772410427351,9.92869831,84.036,84.003,10.83198029]
[1772410428254,9.92869831,84.036,84.005,10.83198029]
[1772410429453,10.7095,84.035,84.006,10.83198029]
[1772410431852,10.7083,84.044,84.01,2.71899951]
[1772410432556,10.7083,84.044,84.01,2.71821715]
[1772410433060,10.81923347,84.043,84.007,10.83198029]
[1772410433353,10.81923347,84.039,84.007,10.83198029]
[1772410434656,10.7093,84.037,84.007,10.83198029]
[1772410436253,10.81923347,84.069,84.02,2.71821715]
[1772410436459,2.71821715,84.06,84.02,2.71821715]
[1772410436656,13.53745062,84.06,84.02,2.71821715]
[1772410437056,10.81923347,84.059,84.02,2.71821715]
[1772410437959,10.81923347,84.059,84.018,8.029e-05]
[1772410438160,10.81923347,84.059,84.013,10.71757023]
[1772410438559,10.7088,84.04,84.013,10.71757023]
[1772410438859,10.81923347,84.049,84.0,2.71821715]
[1772410439157,2.71821715,84.04,84.0,2.71821715]
[1772410439353,2.71821715,84.04,84.0,1.715e-05]
[1772410439354,10.7117,84.018,84.0,1.715e-05]
[1772410439559,10.7117,84.018,83.99,2.71821715]
[1772410440554,10.96950729,84.073,83.97,10.71757023]
[1772410440555,10.81923347,84.019,83.98,2.71821715]
[1772410440761,13.53745062,84.03,83.99,2.71821715]
[1772410441660,13.53745062,84.03,83.97,10.71757023]
[1772410441661,2.71821715,84.04,84.0,2.71821715]
[1772410441859,10.81923347,84.046,84.0,2.71821715]
[1772410442054,10.81923347,84.046,84.0,1.715e-05]
[1772410442255,2.71821715,84.04,84.0,1.715e-05]
[1772410442661,10.7116,84.019,84.0,1.715e-05]
[1772410443159,10.7116,84.019,83.991,10.71757023]
[1772410443550,10.7116,84.019,84.0,1.715e-05]
[1772410446163,10.7127,84.01,83.99,1.715e-05]
[1772410446566,10.7138,84.002,83.98,2.91798602]
[1772410446764,10.7138,84.002,83.99,1.715e-05]
[1772410447057,10.7126,84.011,83.99,1.715e-05]
[1772410448466,10.81923347,84.029,84.0,2.71821715]
[1772410449068,10.709,84.039,84.0,2.71821715]
[1772410449260,21.52823347,84.039,84.0,2.71821715]
[1772410449969,21.52863347,84.036,84.0,2.71821715]
[1772410450266,10.81923347,84.035,84.0,2.71821715]
[1772410452872,10.81923347,84.033,83.99,2.71821715]
[1772410453969,10.22629436,84.029,83.99,2.71821715]
[1772410455767,10.22629436,84.029,83.969,10.7179]
[1772410455968,10.22629436,84.026,83.98,2.71821715]
[1772410456670,10.22629436,84.026,83.99,2.71821715]
[1772410456973,10.22629436,84.026,83.921,35.7]
[1772410456974,10.22629436,84.039,84.02,2.71821715]
[1772410457173,10.34379075,84.053,84.02,2.71821715]
[1772410457670,10.7073,84.052,84.02,2.71821715]
[1772410457868,21.05109075,84.052,84.02,2.71821715]
[1772410459770,10.7076,84.05,84.02,2.71821715]
[1772410460070,21.05139075,84.05,84.02,2.71821715]
[1772410460269,10.34379075,84.049,84.02,2.71821715]
[1772410462571,10.7078,84.048,84.01,2.71821715]
[1772410463975,10.34379075,84.033,84.0,2.71821715]
[1772410464274,187.901,84.085,83.985,10.60812832]
[1772410464275,10.34379075,84.029,83.99,2.71821715]
[1772410464470,10.34379075,84.019,83.97,2.71821715]
[1772410464676,2.71821715,84.01,83.97,2.71821715]
[1772410464973,10.34379075,84.019,83.98,2.71821715]
[1772410465475,10.7124,84.012,83.97,2.71821715]
[1772410467172,10.7124,84.012,83.98,2.71821715]
[1772410467474,10.7124,84.012,83.97,2.71821715]
[1772410467669,10.34379075,84.034,84.0,2.71821715]
[1772410468076,10.7127,84.01,83.98,2.71821715]
[1772410468665,2.71821715,84.02,83.98,2.71821715]
[1772410469079,10.7113,84.021,83.98,2.71821715]
[1772410469581,21.05509075,84.021,83.98,2.71821715]
[1772410469777,10.34379075,84.02,83.98,2.71821715]
[1772410470479,10.34379075,84.02,83.98,17.33798093]
[1772410470680,10.34379075,84.02,83.99,2.71821715]
[1772410472784,10.34379075,84.033,83.99,2.71821715]
[1772410475182,10.34379075,84.029,83.99,2.71821715]
[1772410476478,10.34379075,84.029,83.98,17.33798093]
[1772410476686,10.34379075,84.029,83.99,2.71821715]
[1772410477786,10.34379075,84.029,84.0,2.71821715]
[1772410479479,10.34379075,84.043,84.01,2.71821715]
[1772410480884,10.34379075,84.039,84.0,2.71821715]
[1772410481783,10.34379075,84.035,84.0,2.71821715]
[1772410481980,10.34379075,84.029,83.99,17.33798093]
[1772410482188,10.34379075,84.029,83.99,2.71821715]
[1772410483589,10.34379075,84.025,83.99,2.71821715]
[1772410483985,2.71821715,84.01,83.972,14.61976378]
[1772410484281,10.34379075,84.009,83.971,14.61976378]
[1772410484487,10.34379075,84.009,83.97,2.71821715]
[1772410484488,10.34379075,84.009,83.97,17.33798093]
[1772410484988,2.71821715,84.01,83.97,17.33798093]
[1772410484989,10.34379075,84.006,83.97,17.33798093]
[1772410485188,10.34379075,84.006,83.965,14.61976378]
[1772410485885,10.34379075,84.004,83.965,14.61976378]
[1772410486188,10.34379075,84.004,83.964,14.61976378]
[1772410486790,10.34379075,83.999,83.964,14.61976378]
[1772410487686,10.7142,83.998,83.964,14.61976378]
[1772410489097,10.7142,83.998,83.963,14.61976378]
[1772410489293,10.05807072,83.997,83.963,14.61976378]
[1772410489500,10.05807072,83.976,83.93,2.71821715]
[1772410489703,10.05807072,83.969,83.92,2.71821715]
[1772410490198,2.71821715,83.96,83.92,2.71821715]
[1772410491204,10.05807072,83.959,83.91,264.57330567]
[1772410491403,10.05807072,83.959,83.92,2.71821715]
[1772410491796,10.05807072,83.949,83.903,9.9051326]
[1772410491995,10.05807072,83.949,83.816,167.0266]
[1772410491996,2.71821715,83.92,83.866,9.9051326]
[1772410492195,10.05807072,83.919,83.87,2.71821715]
[1772410492401,10.05807072,83.919,83.88,2.71821715]
[1772410493404,166.6775,83.992,83.89,2.71821715]
[1772410493702,166.6775,83.992,83.84,62.0]
[1772410493703,10.05807072,83.939,83.9,2.71821715]
[1772410493907,10.05807072,83.939,83.89,2.71821715]
[1772410494105,2.71821715,83.93,83.882,9.9051326]
[1772410494308,2.71821715,83.92,83.867,9.9051326]
[1772410494501,10.05807072,83.919,83.88,2.72697256]
[1772410495404,10.05807072,83.919,83.89,2.72697256]
[1772410495605,10.05807072,83.936,83.9,2.72697256]
[1772410496402,10.05807072,83.936,83.891,9.9051326]
[1772410496604,10.05807072,83.909,83.87,2.72697256]
[1772410496807,10.05807072,83.909,83.86,2.72697256]
[1772410497107,10.05807072,83.899,83.86,2.72697256]
[1772410498404,10.05807072,83.899,83.785,167.0886]
[1772410498405,10.05807072,83.898,83.84,2.72697256]
[1772410498706,2.72697256,83.88,83.84,2.72697256]
[1772410498911,10.05807072,83.879,83.84,2.72697256]
[1772410500812,10.7297,83.877,83.84,2.72697256]
[1772410501307,10.05807072,83.887,83.83,9.9051326]
[1772410501501,21.4416,83.947,83.83,9.9051326]
[1772410501502,10.05807072,83.869,83.83,2.72697256]
[1772410501705,10.05807072,83.869,83.814,9.9051326]
[1772410501706,2.72697256,83.85,83.81,2.72697256]
[1772410501901,2.72697256,83.83,83.765,9.9051326]
[1772410502101,2.72697256,83.81,83.77,2.72697256]
[1772410502307,35.7,83.915,83.726,295.48716036]
[1772410502308,10.05807072,83.83,83.78,2.72697256]
[1772410502507,21.4575,83.884,83.763,9.9051326]
[1772410502508,10.05807072,83.819,83.763,9.9051326]
[1772410502811,35.7,83.915,83.75,7.256e-05]
[1772410502812,10.7415,83.784,83.75,7.256e-05]
[1772410503111,10.05807072,83.759,83.686,9.9051326]
[1772410503309,10.05807072,83.759,83.72,2.72697256]
[1772410503612,10.05807072,83.779,83.73,2.72697256]
[1772410503909,10.05807072,83.779,83.719,9.9051326]
[1772410503910,10.05807072,83.779,83.74,2.72697256]
[1772410504106,10.05807072,83.798,83.719,9.9051326]
[1772410504304,10.05807072,83.798,83.76,2.72697256]
[1772410504507,10.05807072,83.798,83.74,6.51184144]
[1772410505307,10.05807072,83.797,83.74,6.51184144]
[1772410506306,10.05807072,83.795,83.73,6.51184144]
[1772410506715,10.05807072,83.795,83.731,9.9051326]
[1772410506914,10.7381,83.811,83.76,6.51184144]
[1772410507212,10.05807072,83.809,83.74,6.51184144]
[1772410507408,10.05807072,83.794,83.74,6.51184144]
[1772410508211,10.05807072,83.79,83.73,6.51184144]
[1772410508513,10.05807072,83.769,83.703,9.9051326]
[1772410508812,10.05807072,83.767,83.703,9.9051326]
[1772410509112,10.05807072,83.759,83.69,6.51184144]
[1772410509910,9.81873184,83.758,83.69,16.41697404]
[1772410510410,6.51184144,83.78,83.71,6.51184144]
[1772410511113,6.51184144,83.76,83.69,6.51184144]
[1772410511319,6.51184144,83.76,83.683,9.9051326]
[1772410511611,6.51184144,83.74,83.67,6.51184144]
[1772410512017,10.05807072,83.739,83.67,6.51184144]
[1772410512405,6.51184144,83.73,83.666,9.9051326]
[1772410512607,10.05807072,83.699,83.599,9.9051326]
[1772410512811,10.05807072,83.699,83.631,9.9051326]
[1772410513512,10.05807072,83.699,83.64,6.51184144]
[1772410513914,10.42030149,83.719,83.651,10.11347709]
[1772410514113,10.42030149,83.709,83.651,10.11347709]
[1772410514718,10.42030149,83.709,83.66,6.51184144]
[1772410515120,10.42030149,83.689,83.611,10.11347709]
[1772410515321,10.42030149,83.679,83.611,10.11347709]
[1772410515711,10.42030149,83.669,83.611,10.11347709]
[1772410515911,10.42030149,83.669,83.6,6.51184144]
[1772410516118,16.93214293,83.66,83.594,10.11347709]
[1772410516321,10.42030149,83.678,83.621,10.11347709]
[1772410517418,10.82971813,83.669,83.604,10.22691319]
[1772410518013,10.82971813,83.689,83.62,6.51184144]
[1772410518217,10.82971813,83.689,83.621,10.22691319]
[1772410518414,10.82971813,83.679,83.61,6.51184144]
[1772410518614,17.34155957,83.67,83.61,6.51184144]
[1772410518821,10.82971813,83.669,83.603,10.22691319]
[1772410519219,10.82971813,83.686,83.621,10.22691319]
[1772410520521,6.51184144,83.66,83.597,10.22691319]
[1772410520718,17.34155957,83.65,83.597,10.22691319]
[1772410521423,10.82971813,83.649,83.597,10.22691319]
[1772410521924,10.82971813,83.669,83.597,10.22691319]
[1772410522525,10.82971813,83.666,83.601,10.22691319]
[1772410522726,6.51184144,83.68,83.611,10.22691319]
[1772410523023,10.82971813,83.684,83.621,10.22691319]
[1772410523230,10.82971813,83.701,83.64,6.51184144]
[1772410523720,10.82971813,83.701,83.65,6.51184144]
[1772410524524,10.82971813,83.701,83.641,10.22691319]
[1772410525123,10.82971813,83.701,83.642,10.7597]
[1772410526224,10.82971813,83.701,83.641,10.22691319]
[1772410527524,10.75,83.719,83.651,10.22691319]
[1772410527727,10.82971813,83.718,83.66,6.51184144]
[1772410528024,10.82971813,83.718,83.66,16.73875463]
[1772410528430,10.82971813,83.709,83.642,10.22691319]
[1772410528930,10.82971813,83.709,83.66,6.51184144]
[1772410529424,10.82971813,83.709,83.598,10.22691319]
[1772410529729,6.51184144,83.65,83.598,10.22691319]
[1772410530328,6.51184144,83.68,83.584,291.71461373]
[1772410530329,4.17535583,83.649,83.585,10.22691319]
[1772410530632,4.17535583,83.649,83.591,10.22691319]
[1772410531931,4.17535583,83.649,83.595,10.7657]
[1772410532127,6.51184144,83.66,83.596,10.22691319]
[1772410532327,4.55487135,83.668,83.6,6.51184144]
[1772410532532,4.55487135,83.665,83.601,10.765]
[1772410532732,4.57002205,83.659,83.6,10.22691319]
[1772410532926,6.51184144,83.65,83.6,10.22691319]
[1772410533526,6.51184144,83.64,83.585,10.22691319]
[1772410533731,4.30107161,83.639,83.585,10.22691319]
[1772410534835,10.7605,83.637,83.585,10.22691319]
[1772410535533,4.39219837,83.657,83.59,6.51184144]
[1772410535833,4.39219837,83.657,83.591,10.22691319]
[1772410536138,4.39219837,83.657,83.601,10.22691319]
[1772410537138,4.39345331,83.676,83.611,10.22691319]
[1772410537635,10.7556,83.675,83.611,10.22691319]
[1772410538040,6.51184144,83.69,83.621,10.22691319]
[1772410538245,4.40771567,83.695,83.631,10.22691319]
[1772410538433,4.40771567,83.695,83.64,16.73875463]
[1772410538634,4.40771567,83.695,83.641,10.22691319]
[1772410538834,10.7527,83.697,83.641,10.22691319]
[1772410539035,4.42154325,83.712,83.65,6.51184144]
[1772410540036,10.7514,83.708,83.65,6.51184144]
[1772410540238,10.7514,83.708,83.65,16.73875463]
[1772410541740,4.42154325,83.712,83.652,10.7585]
[1772410542235,4.42154325,83.712,83.6,6.51184144]
[1772410542236,4.42154325,83.712,83.66,16.73875463]
[1772410542631,4.42154325,83.712,83.642,10.22691319]
[1772410542832,6.51184144,83.76,83.642,10.22691319]
[1772410542833,4.7150233,83.709,83.642,10.22691319]
[1772410543239,10.7527,83.698,83.642,10.22691319]
[1772410543433,4.74928698,83.697,83.642,10.22691319]
[1772410543840,10.753,83.695,83.642,10.22691319]
[1772410545046,4.74928698,83.697,83.6,6.51184144]
[1772410545047,4.74928698,83.697,83.63,6.51184144]
[1772410545646,4.76769857,83.689,83.63,6.51184144]
[1772410545842,10.7583,83.654,83.607,10.22691319]
[1772410546240,6.51184144,83.66,83.607,10.22691319]
[1772410546445,10.7595,83.645,83.59,6.51184144]
[1772410546747,10.7595,83.645,83.591,10.22691319]
[1772410546947,4.76783297,83.661,83.564,31.89519107]
[1772410546948,10.7565,83.668,83.611,10.2163575]
[1772410547140,14.78884289,83.753,83.6,6.51184144]
[1772410547141,4.7811115,83.667,83.6,6.51184144]
[1772410547345,4.7811115,83.667,83.601,10.2163575]
[1772410547652,10.7581,83.655,83.601,10.2163575]
[1772410547850,4.7811115,83.667,83.601,10.2163575]
[1772410548052,10.7624,83.622,83.58,10.2163575]
[1772410548349,10.7624,83.622,83.556,10.7708]
[1772410548350,10.7624,83.622,83.571,10.2163575]
[1772410549550,10.761,83.633,83.581,10.2163575]
[1772410552255,4.66498058,83.658,83.591,10.2163575]
[1772410554254,4.66498058,83.658,83.601,10.2163575]
[1772410555651,10.7566,83.667,83.611,10.2163575]
[1772410556453,10.7566,83.667,83.574,14.13471772]
[1772410556454,4.7011301,83.664,83.6,6.53456709]
[1772410557554,5.17899743,83.655,83.594,10.2163575]
[1772410559248,10.7595,83.644,83.594,10.2163575]
[1772410560458,10.761,83.633,83.58,16.75092459]
[1772410560854,10.761,83.633,83.581,10.2163575]
[1772410561354,5.54072056,83.643,83.581,10.2163575]
[1772410561960,10.7599,83.641,83.581,10.2163575]
[1772410562357,5.59442968,83.663,83.601,10.2163575]
[1772410562960,10.7587,83.651,83.601,10.2163575]
[1772410564160,10.7599,83.642,83.601,10.2163575]
[1772410564563,5.59442968,83.663,83.601,10.2163575]
[1772410564764,10.7595,83.645,83.601,10.2163575]
[1772410564963,5.53433366,83.644,83.585,10.2163575]
[1772410565364,5.53433366,83.623,83.568,10.2163575]
[1772410565755,12.07844925,83.62,83.568,10.2163575]
[1772410565961,5.54422247,83.619,83.568,10.2163575]
[1772410566368,10.764,83.61,83.551,10.2163575]
[1772410566560,16.30822247,83.61,83.551,10.2163575]
[1772410566761,5.55369203,83.609,83.551,10.2163575]
[1772410567269,6.53456709,83.64,83.551,10.2163575]
[1772410567270,5.50231383,83.603,83.551,10.2163575]
[1772410568771,16.28618714,83.602,83.551,10.2163575]
[1772410569174,5.16721054,83.622,83.561,10.2163575]
[1772410569570,5.16721054,83.622,83.56,6.53456709]
[1772410569571,5.16721054,83.622,83.563,10.2163575]
[1772410570072,5.16721054,83.622,83.567,10.2163575]
[1772410570275,5.16721054,83.622,83.566,10.7694]
[1772410570276,5.16721054,83.622,83.571,10.2163575]
[1772410570964,5.00419907,83.649,83.581,10.2163575]
[1772410571164,5.00419907,83.633,83.581,10.2163575]
[1772410571975,5.00419907,83.633,83.56,6.53456709]
[1772410571976,5.01332533,83.65,83.591,10.2163575]
[1772410573070,10.76,83.641,83.591,10.2163575]
[1772410577675,10.7587,83.651,83.601,10.46112368]
[1772410577878,5.31734125,83.666,83.611,10.46112368]
[1772410578779,10.7584,83.653,83.611,10.46112368]
[1772410580678,10.7595,83.644,83.611,2.368e-05]
[1772410581178,11.38802596,83.651,83.59,6.53456709]
[1772410581776,10.7606,83.636,83.59,6.53456709]
[1772410582172,10.7593,83.646,83.6,6.53456709]
[1772410583580,10.7605,83.637,83.6,6.53456709]
[1772410583981,10.7605,83.637,83.593,10.46112368]
[1772410585881,10.7615,83.629,83.593,10.46112368]
[1772410586177,11.38802596,83.649,83.593,10.46112368]
[1772410586872,10.7593,83.646,83.593,10.46112368]
[1772410587678,10.758,83.656,83.601,10.46112368]
[1772410588383,10.7591,83.648,83.601,10.46112368]
[1772410588784,11.38802596,83.667,83.601,10.46112368]
[1772410589579,10.7576,83.66,83.601,10.46112368]
[1772410590379,22.14562596,83.66,83.602,10.7649]
[1772410590579,22.14562596,83.66,83.603,10.46112368]
[1772410590985,11.38802596,83.659,83.603,10.46112368]
[1772410591781,11.38802596,83.659,83.606,10.46112368]
[1772410591982,11.38802596,83.659,83.611,10.46112368]
[1772410592486,22.14602596,83.656,83.611,10.46112368]
[1772410592687,11.38802596,83.655,83.611,10.46112368]
[1772410593088,10.7598,83.643,83.597,10.46112368]
[1772410593582,10.7602,83.639,83.597,10.46112368]
[1772410593782,11.38802596,83.642,83.597,10.46112368]
[1772410594587,10.7599,83.641,83.597,10.46112368]
[1772410596686,11.38802596,83.67,83.611,10.46112368]
[1772410597487,11.38802596,83.67,83.61,6.53456709]
[1772410597488,11.38802596,83.659,83.598,14.13471772]
[1772410597688,11.38802596,83.659,83.596,10.46112368]
[1772410598981,11.38802596,83.649,83.584,14.13471772]
[1772410599187,11.38802596,83.639,83.582,10.46112368]
[1772410599882,10.7636,83.613,83.582,10.46112368]
[1772410600189,10.7636,83.613,83.561,14.13471772]
[1772410600891,10.7621,83.624,83.566,14.13471772]
[1772410601089,10.7621,83.624,83.57,6.53456709]
[1772410601289,10.7621,83.624,83.554,22.10266652]
[1772410601290,10.7621,83.624,83.567,14.13471772]
[1772410601690,22.15012596,83.624,83.567,14.13471772]
[1772410601990,10.7632,83.616,83.567,10.46112368]
[1772410602387,10.7632,83.616,83.57,6.53456709]
[1772410602589,11.38802596,83.639,83.581,10.46112368]
[1772410603789,11.38802596,83.639,83.566,14.13471772]
[1772410603790,11.38802596,83.629,83.566,24.5958414]
[1772410603993,11.38802596,83.629,83.566,10.46112368]
[1772410606787,10.7637,83.612,83.566,10.46112368]
[1772410606992,11.38802596,83.629,83.566,10.46112368]
[1772410607489,32.57910375,83.667,83.551,25.32323559]
[1772410607490,11.49177236,83.61,83.551,25.32323559]
[1772410607993,10.763,83.618,83.561,11.18851787]
[1772410608191,22.25477236,83.618,83.561,11.18851787]
[1772410608392,11.49177236,83.617,83.555,14.13471772]
[1772410608590,11.49177236,83.617,83.55,6.53456709]
[1772410608992,11.49177236,83.614,83.553,11.18851787]
[1772410609494,11.49177236,83.612,83.553,11.18851787]
[1772410610097,11.49177236,83.612,83.561,11.18851787]
[1772410610594,11.49177236,83.612,83.563,10.7698]
[1772410610789,11.49177236,83.612,83.56,6.53456709]
[1772410610790,11.49177236,83.627,83.57,6.53456709]
[1772410610994,11.49177236,83.627,83.571,11.18851787]
[1772410611293,10.7644,83.606,83.571,11.18851787]
[1772410611795,11.49177236,83.613,83.571,11.18851787]
[1772410612598,10.7637,83.612,83.571,11.18851787]
[1772410615402,11.49177236,83.613,83.571,11.18851787]
[1772410615597,11.49177236,83.627,83.574,11.18851787]
[1772410617503,11.49177236,83.642,83.581,11.18851787]
[1772410618103,10.7599,83.641,83.582,11.18851787]
[1772410618504,22.25167236,83.641,83.582,11.18851787]
[1772410618707,11.49177236,83.636,83.584,11.18851787]
[1772410619807,10.7608,83.635,83.584,11.18851787]
[1772410620602,22.25257236,83.635,83.584,11.18851787]
[1772410620807,11.49177236,83.63,83.584,11.18851787]
[1772410621400,10.7615,83.629,83.584,11.18851787]
[1772410621707,10.7615,83.629,83.566,22.10266652]
[1772410621708,11.49177236,83.628,83.569,11.18851787]
[1772410622001,11.49177236,83.628,83.562,14.13471772]
[1772410622210,11.49177236,83.628,83.554,11.18851787]
[1772410622211,11.49177236,83.628,83.559,14.13471772]
[1772410622504,11.49177236,83.628,83.559,25.32323559]
[1772410622901,10.7639,83.61,83.559,25.32323559]
[1772410623097,10.7639,83.61,83.56,11.18851787]
[1772410623405,11.49177236,83.596,83.554,14.13471772]
[1772410623595,11.49177236,83.596,83.5,99.07721843]
[1772410623596,11.49177236,83.596,83.541,14.13471772]
[1772410624204,11.49177236,83.596,83.54,14.13471772]
[1772410624401,11.49177236,83.596,83.536,14.13471772]
[1772410624706,11.49177236,83.591,83.536,14.13471772]
[1772410625206,11.49177236,83.591,83.535,14.13471772]
[1772410626202,11.49177236,83.591,83.534,14.13471772]
[1772410626403,11.49177236,83.591,83.532,11.18851787]
[1772410626800,10.7667,83.589,83.532,11.18851787]
[1772410627004,11.49177236,83.588,83.532,11.18851787]
[1772410628901,11.49177236,83.585,83.532,11.18851787]
[1772410631504,11.49177236,83.585,83.542,4.148e-05]
[1772410632906,10.7684,83.575,83.542,4.148e-05]
[1772410634002,10.91542708,83.599,83.542,11.18472161]
[1772410635307,10.91542708,83.599,83.542,4.148e-05]
[1772410636906,10.7684,83.576,83.542,4.148e-05]
[1772410637106,11.69256785,83.575,83.542,4.148e-05]
[1772410637511,10.7698,83.564,83.542,4.148e-05]
[1772410639308,11.69256785,83.573,83.542,4.148e-05]
[1772410640713,10.77,83.563,83.542,4.148e-05]
[1772410642110,10.7688,83.572,83.542,4.148e-05]
[1772410643911,14.44213552,83.59,83.55,2.74956767]
[1772410644111,14.44213552,83.59,83.542,4.148e-05]
[1772410644618,11.69256785,83.579,83.542,4.148e-05]
[1772410646115,11.69256785,83.579,83.55,2.74956767]
[1772410647222,11.69256785,83.576,83.542,4.148e-05]
[1772410647714,14.44213552,83.59,83.55,2.74956767]
[1772410647919,10.7668,83.588,83.55,2.74956767]
[1772410648115,11.69256785,83.59,83.55,2.74956767]
[1772410648511,11.69256785,83.587,83.55,2.74956767]
[1772410648909,11.69256785,83.587,83.542,4.148e-05]
[1772410649215,2.74956767,83.58,83.542,4.148e-05]
[1772410650115,2.74956767,83.59,83.55,2.74956767]
[1772410650820,14.44213552,83.59,83.55,2.74956767]
[1772410651316,11.69256785,83.59,83.55,2.74956767]
[1772410652324,11.69256785,83.604,83.55,14.63002928]
[1772410652624,11.69256785,83.604,83.56,14.63002928]
[1772410653523,11.69256785,83.604,83.57,2.74956767]
[1772410653825,22.45556785,83.617,83.57,2.74956767]
[1772410654122,11.69256785,83.616,83.57,2.74956767]
[1772410655525,11.69256785,83.616,83.56,11.88046161]
[1772410655526,11.69256785,83.609,83.56,14.63002928]
[1772410656127,11.69256785,83.609,83.57,2.74956767]
[1772410656325,11.69256785,83.609,83.57,14.63002928]
[1772410656530,11.69256785,83.609,83.58,2.74956767]
[1772410657133,11.69256785,83.626,83.59,2.74956767]
[1772410658132,14.44213552,83.64,83.6,2.74956767]
[1772410658831,22.45296785,83.638,83.6,2.74956767]
[1772410659130,11.69256785,83.637,83.6,2.74956767]
[1772410660524,10.7607,83.636,83.6,2.74956767]
[1772410660721,11.69256785,83.637,83.61,2.74956767]
[1772410660932,14.44213552,83.65,83.61,2.74956767]
[1772410661132,14.44213552,83.66,83.62,2.74956767]
[1772410661328,10.7579,83.657,83.62,2.74956767]
[1772410663044,11.69256785,83.66,83.63,2.74956767]
[1772410664128,10.7576,83.659,83.611,11.88046161]
[1772410664332,11.69256785,83.658,83.62,2.74956767]
[1772410665037,11.69256785,83.658,83.62,14.63002928]
[1772410666536,11.69256785,83.658,83.63,2.74956767]
[1772410667642,11.69256785,83.658,83.62,14.63002928]
[1772410668742,11.18874463,83.673,83.64,2.74956767]
[1772410668942,11.18874463,83.689,83.65,2.74956767]
[1772410669443,10.7541,83.687,83.65,2.74956767]
[1772410669943,2.74956767,83.68,83.64,2.74956767]
[1772410670445,13.9383123,83.68,83.64,2.74956767]
[1772410670647,10.7563,83.669,83.64,6.767e-05]
[1772410671543,10.7563,83.669,83.63,2.74956767]
[1772410672444,10.7568,83.666,83.63,2.74956767]
[1772410673143,2.74956767,83.66,83.621,9.34775046]
[1772410673545,11.18874463,83.648,83.591,9.22739961]
[1772410673745,2.74956767,83.64,83.6,2.74956767]
[1772410674146,11.18874463,83.648,83.6,2.74956767]
[1772410674347,10.7604,83.638,83.61,2.74956767]
[1772410675541,10.7613,83.63,83.591,9.22739961]
[1772410675743,10.7613,83.63,83.59,2.74956767]
[1772410675744,11.18874463,83.629,83.59,2.74956767]
[1772410675944,2.74956767,83.61,83.57,2.74956767]
[1772410676148,11.18874463,83.609,83.57,2.74956767]
[1772410676642,10.7642,83.608,83.566,9.43319679]
[1772410676850,2.74956767,83.6,83.566,9.43319679]
[1772410677242,11.18874463,83.609,83.566,9.43319679]
[1772410677845,10.7642,83.608,83.566,9.43319679]
[1772410678039,2.74956767,83.6,83.566,9.43319679]
[1772410679044,11.18874463,83.609,83.566,9.43319679]
[1772410679951,11.18874463,83.624,83.58,2.74956767]
[1772410680547,2.7463107,83.62,83.58,2.7463107]
[1772410680749,11.18874463,83.639,83.6,2.7463107]
[1772410681052,11.18874463,83.639,83.581,9.34592014]
[1772410681053,2.7463107,83.65,83.61,2.7463107]
[1772410681253,11.18874463,83.648,83.6,2.7463107]
[1772410681550,13.93505533,83.64,83.595,9.27628082]
[1772410681750,13.93505533,83.63,83.59,2.7463107]
[1772410682847,11.18874463,83.63,83.59,2.7463107]
[1772410683245,13.93505533,83.63,83.59,2.7463107]
[1772410683448,11.18874463,83.63,83.58,12.02993367]
[1772410683748,2.7463107,83.62,83.58,12.02993367]
[1772410683950,11.18874463,83.59,83.55,2.7463107]
[1772410685651,11.18874463,83.59,83.56,2.7463107]
[1772410685845,2.7463107,83.6,83.56,2.7463107]
[1772410686448,2.7463107,83.6,83.512,22.10266652]
[1772410686449,11.18874463,83.618,83.59,2.7463107]
[1772410686644,2.7463107,83.63,83.59,2.7463107]
[1772410686844,10.7608,83.635,83.6,2.7463107]
[1772410687144,2.7463107,83.65,83.61,2.7463107]
[1772410687346,2.7463107,83.65,83.591,9.29098566]
[1772410687347,11.18874463,83.65,83.591,9.29098566]
[1772410687652,167.2746,83.693,83.6,2.7463107]
[1772410687653,11.18874463,83.639,83.6,2.7463107]
[1772410688352,10.7605,83.637,83.6,2.7463107]
[1772410688549,10.7605,83.637,83.591,9.29098566]
[1772410688956,10.7617,83.627,83.574,9.28567677]
[1772410689646,11.18874463,83.622,83.574,9.28567677]
[1772410690360,11.18874463,83.639,83.58,15.82860847]
[1772410690651,11.18874463,83.655,83.591,9.29877389]
[1772410690957,11.18874463,83.655,83.61,6.53637066]
[1772410691655,11.18874463,83.653,83.61,6.53637066]
[1772410691845,11.18874463,83.653,83.601,9.29877389]
[1772410692856,10.7586,83.651,83.601,9.29877389]